Cogmind - Beta 10.2 *** ADVENTURER MODE // 2021.01.22 @ 02:42:04 // Winter2019/RPGLIKE Player: DeltaFire Result: Self-destructed Performance ------------- Evolutions (3) 1500 Regions Visited (6) 1200 Robots Destroyed (44) 220 Value Destroyed (1272) 1272 Prototype IDs (2) 40 Alien Tech Used (0) 0 Bonus (0) 0 TOTAL SCORE: 4232 Bonus ------- None Cogmind --------- Core Integrity 546/700 Matter 252/300 Energy 160/160 System Corruption 0% Temperature Cool (0) Movement Walking (120) Location -7/Factory Parts ------- > --- POWER (1) -------- Light Nuclear Core > --- PROPULSION (2) --- Improved Aluminum Leg Carbon-fiber Leg > --- UTILITY (9) ------ Advanced Heat Sink Structural Scanner Structural Scanner Sensor Array Improved Signal Interpreter Advanced Targeting Computer Recoil Stabilizer Maneuvering Thrusters > --- WEAPON (2) ------- Arc Projector Particle Gun > --- INVENTORY (1) ---- Heavy Rocket Launcher Peak State ------------ > --- POWER ------------ Light Nuclear Core > --- PROPULSION ------- Improved Aluminum Leg Carbon-fiber Leg > --- UTILITY ---------- Advanced Heat Sink Structural Scanner Structural Scanner Sensor Array Improved Signal Interpreter Advanced Targeting Computer Recoil Stabilizer Maneuvering Thrusters > --- WEAPON ----------- Arc Projector Particle Gun > --- INVENTORY -------- Rocket Launcher [Rating: 33] Favorites ----------- Power Light Nuclear Core Engine Ion Engine Power Core Light Nuclear Core Propulsion Aluminum Leg Leg Aluminum Leg Utility Structural Scanner Device Structural Scanner Processor Targeting Computer Weapon Assault Rifle Energy Gun Particle Gun Ballistic Gun Assault Rifle Special Weapon Plasma Cutter Build | -11 -10 -10 -10 -9 -8 -7 ------- Run | Scr Mat Min Exi Min Mat Fac Slots Evolved 10 | 4 . 2 . . 4 . Power . | . . . . . . . Propulsion 1 | 1 . . . . . . Utility 8 | 2 . 2 . . 4 . Weapon 1 | 1 . . . . . . Parts Attached 27 | 5 3 3 . . 13 3 Power 4 | 1 . 1 . . 1 1 Engine 1 | 1 . . . . . . Core 3 | . . 1 . . 1 1 Reactor . | . . . . . . . Propulsion 5 | 2 . . . . 3 . Treads . | . . . . . . . Leg 5 | 2 . . . . 3 . Wheel . | . . . . . . . Hover . | . . . . . . . Flight . | . . . . . . . Utility 11 | . 3 2 . . 6 . Device 8 | . 3 1 . . 4 . Storage . | . . . . . . . Processor 3 | . . 1 . . 2 . Hackware . | . . . . . . . Protection . | . . . . . . . Artifact . | . . . . . . . Weapon 7 | 2 . . . . 3 2 Energy Gun 2 | . . . . . . 2 Energy Cannon . | . . . . . . . Ballistic Gun 4 | 2 . . . . 2 . Ballistic Cannon . | . . . . . . . Launcher . | . . . . . . . Special Weapon 1 | . . . . . 1 . Impact Weapon . | . . . . . . . Slashing Weapon . | . . . . . . . Piercing Weapon . | . . . . . . . Special Melee Weapon . | . . . . . . . Unidentified Prototypes . | . . . . . . . Parts Lost . | . . . . . . . Power . | . . . . . . . Propulsion . | . . . . . . . Utility . | . . . . . . . Weapon . | . . . . . . . Highest Loss Streak . | . . . . . . . Average Slot Usage (%) 97 | . 92 96 100 100 99 91 Engine 2 | . 12 2 . . . . Core 7 | . . 8 10 10 7 7 Leg 18 | . 25 21 20 20 15 14 Device 39 | . 30 34 40 40 44 42 Processor 10 | . . 7 10 10 14 14 Ballistic Gun 18 | . 25 21 20 20 15 6 Naked Turns . | . . . . . . . Heaviest Build 18 | 9 12 13 13 13 15 18 Greatest Support 28 | 20 20 20 20 20 28 28 Greatest Overweight (x) 2 | 2 . . . . . . Average Overweight (x) . | . . . . . . . Largest Inventory Capacity 1 | . 1 1 1 1 1 1 Average Capacity . | . . 1 1 1 1 1 Most Carried 1 | . 1 1 1 1 1 1 Average Carried . | . . 1 1 1 . . Final Capacity 1 | . 1 1 1 1 1 1 Final Carried 1 | . 1 1 1 1 1 1 Class Distribution -------------------- 61% | Mutant 24% | Skirmisher 13% | Scavenger-Skirmisher Dominant Class ---------------- Mutant | -10/Materials Mutant | -10/Mines Mutant | -10/Exiles Mutant | -9/Mines Skirmisher | -8/Materials Scavenger-Skirmisher | -7/Factory Resources | -11 -10 -10 -10 -9 -8 -7 ----------- Run | Scr Mat Min Exi Min Mat Fac Matter Collected 1184 | 250 84 108 . 60 682 . Remotely . | . . . . . . . Salvage Created 1386 | . 85 227 . 108 966 . Parts 89 | . 11 12 . 5 57 4 Haulers Intercepted . | . . . . . . . Recyclers Shooed 1 | . . . . 1 . . Parts Field Recycled . | . . . . . . . Retrieved Matter . | . . . . . . . Parts Self-Destructed . | . . . . . . . Prevented . | . . . . . . . Kills | -11 -10 -10 -10 -9 -8 -7 ------- Run | Scr Mat Min Exi Min Mat Fac Combat Hostiles Destroyed 37 | . 6 4 . 3 22 2 Guns 37 | . 6 4 . 3 22 2 Classes Destroyed 7 | . 2 2 . 1 2 . Tunneler 1 | . . 1 . . . . Recycler 2 | . . . . 1 1 . Watcher 4 | . 1 . . . 3 . Swarmer 15 | . 6 . . 3 6 . Grunt 17 | . . 4 . . 12 1 Duelist 1 | . . . . . 1 . Sentry 4 | . . . . . 3 1 Best Kill Streak 4 | . 4 2 . 4 4 1 Combat Bots Only 3 | . 3 2 . 3 3 1 Max Kills in Single Turn 2 | . 2 1 . 2 1 1 Gunslinging 1 | . . . . 1 . . Exploded . | . . . . . . . Melee . | . . . . . . . Uniques/NPCs Destroyed . | . . . . . . . Combat | -11 -10 -10 -10 -9 -8 -7 -------- Run | Scr Mat Min Exi Min Mat Fac Damage Taken 1867 | . 105 145 . 339 1153 125 Core 1489 | . 86 121 . 269 917 96 Absorbed by Shields . | . . . . . . . Redirected to Core 1191 | . 51 79 . 228 752 81 Core Remaining (%) 66 | 100 . . . 55 43 . Volleys Fired 133 | . 9 13 . 10 93 8 Largest 2 | . 2 2 . 2 2 2 Hottest 120 | . 40 40 . 40 40 120 Shots Fired 264 | . 18 26 . 20 184 16 Gun 264 | . 18 26 . 20 184 16 Cannon . | . . . . . . . Launcher . | . . . . . . . Special . | . . . . . . . Kinetic 254 | . 18 26 . 20 184 6 Thermal 5 | . . . . . . 5 Explosive . | . . . . . . . Electromagnetic 5 | . . . . . . 5 Robot Hit Streak 55 | . 3 16 . 17 55 20 Robot Miss Streak 2 | . 2 1 . 1 2 . Penetration Max . | . . . . . . . Secondary Targets 4 | . . . . 1 3 . Max Gunslinging Chain 1 | . . . . 1 1 . Shots Hit Robots 222 | . 10 21 . 14 161 16 Core Hits 91 | . 7 11 . 5 61 7 Critical Hits 2 | . . . . . 2 . Critical Kills . | . . . . . . . Critical Parts Destroyed 2 | . . . . . 2 . Melee Attacks . | . . . . . . . Impact . | . . . . . . . Slashing . | . . . . . . . Piercing . | . . . . . . . Sneak Attacks . | . . . . . . . Combat Hostiles . | . . . . . . . Follow-up Attacks . | . . . . . . . Damage Inflicted 2914 | . 147 292 . 191 2039 245 Guns 2867 | . 147 292 . 191 2039 198 Cannons . | . . . . . . . Explosions 47 | . . . . . . 47 Melee . | . . . . . . . Ramming . | . . . . . . . Kinetic 2743 | . 147 292 . 191 2039 74 Thermal 119 | . . . . . . 119 Explosive . | . . . . . . . Electromagnetic 52 | . . . . . . 52 Impact . | . . . . . . . Slashing . | . . . . . . . Piercing . | . . . . . . . Highest Corruption . | . . . . . . . Average Corruption . | . . . . . . . Corruption Purged . | . . . . . . . Overload Shots . | . . . . . . . Overflow Damage . | . . . . . . . Projectiles . | . . . . . . . Explosions . | . . . . . . . Melee . | . . . . . . . Knockbacks . | . . . . . . . Impact . | . . . . . . . Kinetic . | . . . . . . . Secondary . | . . . . . . . Self-Inflicted Damage . | . . . . . . . Shots . | . . . . . . . Rammed . | . . . . . . . Targets Rammed . | . . . . . . . Kicked . | . . . . . . . Crushed . | . . . . . . . Highest Temperature 36 | . . 4 . . . 36 Average Temperature 12 | . . 2 . . . 20 Received Heat Transfer 795 | . . 108 . . 639 48 Siege Activations . | . . . . . . . Robots Corrupted . | . . . . . . . Combat Hostiles . | . . . . . . . Parts Fried . | . . . . . . . Impact Corruptions . | . . . . . . . Robots Melted . | . . . . . . . Combat Hostiles . | . . . . . . . Parts Melted . | . . . . . . . Heat Transferred 235 | . . . . . . 235 Parts Sabotaged . | . . . . . . . Parts Stolen . | . . . . . . . Parts Stripped . | . . . . . . . Power Chain Reactions 1 | . . . . . . 1 Missiles Intercepted . | . . . . . . . Alert | -11 -10 -10 -10 -9 -8 -7 ------- Run | Scr Mat Min Exi Min Mat Fac Peak Influence 267 | . 190 65 . 90 267 135 Initial 66 | . . 1 . . . 66 Average 62 | . 64 16 . 57 89 98 Maximum Alert Level 1 | . . . . . 1 . Low Security (%) 96 | 100 100 100 . 100 91 100 Level 1 3 | . . . . . 8 . Level 2 . | . . . . . . . Level 3 . | . . . . . . . Level 4 . | . . . . . . . Level 5 . | . . . . . . . High Security . | . . . . . . . Max Security . | . . . . . . . Squads Dispatched 2 | . . . . . 1 1 Investigation 1 | . . . . . 1 . Extermination 1 | . . . . . . 1 Reinforcement . | . . . . . . . Assault . | . . . . . . . Garrison . | . . . . . . . Intercept . | . . . . . . . Construction Impeded . | . . . . . . . Haulers Reinforced . | . . . . . . . Stealth | -11 -10 -10 -10 -9 -8 -7 --------- Run | Scr Mat Min Exi Min Mat Fac Distress Signals 3 | . 1 . . . 2 . Communications Jammed . | . . . . . . . Distress Signals . | . . . . . . . Times Spotted 54 | . 7 4 . 11 30 2 Peak Tracking Total 7 | . 4 2 . 7 4 1 Tactical Retreats 2 | . . . . 1 1 . Traps | -11 -10 -10 -10 -9 -8 -7 ------- Run | Scr Mat Min Exi Min Mat Fac Traps Triggered . | . . . . . . . Indirectly . | . . . . . . . Trap Hack Attempts . | . . . . . . . Triggered . | . . . . . . . Disarmed . | . . . . . . . Reprogrammed . | . . . . . . . Reused . | . . . . . . . Traps Extracted . | . . . . . . . Installed . | . . . . . . . Triggered . | . . . . . . . Machines | -11 -10 -10 -10 -9 -8 -7 ---------- Run | Scr Mat Min Exi Min Mat Fac Machines Disabled . | . . . . . . . Max in Single Turn . | . . . . . . . Machines Sabotaged . | . . . . . . . Garrisons Compromised . | . . . . . . . Overloaded Fab Kills . | . . . . . . . Fab Network Shutdowns . | . . . . . . . Hacking | -11 -10 -10 -10 -9 -8 -7 --------- Run | Scr Mat Min Exi Min Mat Fac Machines Accessed 12 | . 4 . 2 . 6 . Terminals 8 | . 4 . . . 4 . Fabricators . | . . . . . . . Repair Stations . | . . . . . . . Recycling Units 1 | . . . . . 1 . Scanalyzers 1 | . . . . . 1 . Garrison Access . | . . . . . . . Total Hacks 48 | . 10 . 19 . 19 . Successful 40 | . 7 . 19 . 14 . Failed 8 | . 3 . . . 5 . Catastrophic 1 | . . . . . 1 . Database Lockouts . | . . . . . . . Manual 23 | . 5 . . . 18 . Terminals 26 | . 10 . . . 16 . Fabricators . | . . . . . . . Repair Stations . | . . . . . . . Recycling Units 2 | . . . . . 2 . Scanalyzers 1 | . . . . . 1 . Garrison Access . | . . . . . . . Terminal Hacks 26 | . 4 . 19 . 3 . Record 20 | . 1 . 19 . . . Branch Access Points 2 | . 1 . . . 1 . Alert Level 1 | . . . . . 1 . Security Status 1 | . 1 . . . . . Investigation Status 1 | . 1 . . . . . Hauler Manifests 1 | . . . . . 1 . Fabricator Hacks . | . . . . . . . Repair Station Hacks . | . . . . . . . Recycling Unit Hacks 2 | . . . . . 2 . Report Inventory 1 | . . . . . 1 . Retrieve Components 1 | . . . . . 1 . Scanalyzer . | . . . . . . . Garrison Access Hacks . | . . . . . . . Unauthorized Hacks 12 | . 3 . . . 9 . Terminals 11 | . 3 . . . 8 . Track 3 | . 1 . . . 2 . Botnet 5 | . 1 . . . 4 . Disrupt 1 | . . . . . 1 . Operators 2 | . 1 . . . 1 . Fabricators . | . . . . . . . Repair Stations . | . . . . . . . Recycling Units . | . . . . . . . Scanalyzers 1 | . . . . . 1 . Extract 1 | . . . . . 1 . Garrison Access . | . . . . . . . Data Cores Recovered . | . . . . . . . Used . | . . . . . . . Hacking Detections 8 | . 3 . . . 5 . Full Trace Events . | . . . . . . . Feedback Events . | . . . . . . . Feedback Blocked . | . . . . . . . Robot Schematics Acquired . | . . . . . . . Robots Built . | . . . . . . . Matter . | . . . . . . . Time . | . . . . . . . Total Robot Build Rating . | . . . . . . . Part Schematics Acquired 13 | . . . . . 13 . Parts Built . | . . . . . . . Matter . | . . . . . . . Time . | . . . . . . . Total Part Build Rating . | . . . . . . . Parts Repaired . | . . . . . . . Time . | . . . . . . . Parts Recycled . | . . . . . . . Recycled Matter . | . . . . . . . Retrieved Matter . | . . . . . . . Retrieved Components 9 | . . . . . 9 . Parts Scanalyzed . | . . . . . . . Part Schematics Acquired . | . . . . . . . Parts Damaged . | . . . . . . . Bothacking | -11 -10 -10 -10 -9 -8 -7 ------------ Run | Scr Mat Min Exi Min Mat Fac Used RIF Installer . | . . . . . . . Robots Hacked . | . . . . . . . Non-combat . | . . . . . . . Combat . | . . . . . . . Robot Hacks Applied . | . . . . . . . Relay Couplers Released . | . . . . . . . Robots Rewired . | . . . . . . . Allies Hacked . | . . . . . . . Hacks Repelled . | . . . . . . . Allies | -11 -10 -10 -10 -9 -8 -7 -------- Run | Scr Mat Min Exi Min Mat Fac Total Allies . | . . . . . . . Largest Group . | . . . . . . . Highest-Rated Group . | . . . . . . . Highest-Rated Ally . | . . . . . . . Total Orders . | . . . . . . . Ally Attacks . | . . . . . . . Total Damage . | . . . . . . . Kills . | . . . . . . . Allies Corrupted . | . . . . . . . Allies Melted . | . . . . . . . Intel | -11 -10 -10 -10 -9 -8 -7 ------- Run | Scr Mat Min Exi Min Mat Fac Robot Analysis Total . | . . . . . . . Derelict Logs Recovered 4 | . . 3 . 1 . . Drone Launches . | . . . . . . . Drone Recoveries . | . . . . . . . Exploration | -11 -10 -10 -10 -9 -8 -7 ------------- Run | Scr Mat Min Exi Min Mat Fac Turns Passed 4131 | 41 464 976 562 436 1362 290 Spaces Moved 2858 | 30 355 742 469 338 723 201 Core 5 | 5 . . . . . . Treads . | . . . . . . . Legs 2853 | 25 355 742 469 338 723 201 Wheels . | . . . . . . . Hover . | . . . . . . . Flight . | . . . . . . . Fastest Speed 50 | 50 120 120 120 120 120 120 Average Speed 119 | 115 120 120 120 120 120 120 Slowest Speed 150 | 150 120 120 120 120 120 120 Overloaded Moves . | . . . . . . . Propulsion Burnouts . | . . . . . . . Robots Hopped . | . . . . . . . Cave-ins Triggered . | . . . . . . . Exploration Rate (%) 46 | 3 32 86 90 77 34 5 Regions Visited 6 Branch Regions 3 Pre-discovered Areas 2 | . . 1 . 1 . . Known Exits Taken 3 | . 1 . 1 . 1 . Unknown Exits Taken 3 | 1 . 1 . 1 . . Scrap Searched 2 | . . 1 . 1 . . Spaces Dug . | . . . . . . . Terrain Destroyed 4 | . . . . . . 4 Melee . | . . . . . . . Projectile . | . . . . . . . AOE 4 | . . . . . . 4 Terrain Rammed . | . . . . . . . Walls Destroyed . | . . . . . . . Machines Disabled . | . . . . . . . Actions | -11 -10 -10 -10 -9 -8 -7 --------- Run | Scr Mat Min Exi Min Mat Fac Total 3292 | 34 373 801 468 348 1034 234 Wait 195 | . . 34 . 1 158 2 Move 2852 | 29 354 741 468 337 722 201 Hop . | . . . . . . . Pick Up 5 | . 1 1 . . 2 1 Fast Attach 17 | 5 3 3 . . 4 2 Attach . | . . . . . . . Detach . | . . . . . . . Swap 10 | . . . . . 9 1 Drop 15 | . . 2 . . 9 4 Fire 133 | . 9 13 . 10 93 8 Melee . | . . . . . . . Ram . | . . . . . . . Kick . | . . . . . . . Crush . | . . . . . . . Escape Stasis . | . . . . . . . Rewire . | . . . . . . . Trap . | . . . . . . . Miscellaneous 65 | . 6 7 . . 37 15 Route ------- -11/Scrapyard -10/Materials (discovered 2 exits: *Min x2) -10/Mines (discovered 3 exits: [*Mat x2] / *Exi) -10/Exiles (discovered 2 exits: *Min x2) -9/Mines -8/Materials -7/Factory (discovered 2 exits: *Sto / *Low) History --------- Turn | Location | Event 4 | -11/Scrapyard | Upgraded with Propulsion slot (x1) 4 | -11/Scrapyard | Upgraded with Utility slot (x2) 4 | -11/Scrapyard | Upgraded with Weapon slot (x1) 29 | -11/Scrapyard | Discovered new exit (range 12) 42 | -11/Scrapyard | Entered Materials 311 | -10/Materials | Build established: Mutant 418 | -10/Materials | Discovered new exit (range 7) 460 | -10/Materials | Discovered new exit (range 16) 477 | -10/Materials | Identified exit to Mines 506 | -10/Materials | Entered Mines 523 | -10/Mines | Upgraded with Utility slot (x1) 598 | -10/Mines | Deemed a non-threat by the Exiles lab entrance 598 | -10/Mines | Discovered new exit (range 5) 719 | -10/Mines | Discovered new exit (range 6) 734 | -10/Mines | Reached level 2 775 | -10/Mines | Learned location of Zion (-6) 867 | -10/Mines | Received a Rocket Launcher from a helpful Derelict 948 | -10/Mines | A weapon hastily lodged in a ceiling crevice suddenly fell to the ground 996 | -10/Mines | Discovered new exit (range 11) 1163 | -10/Mines | Learned Materials stockpile data 1230 | -10/Mines | Upgraded with Utility slot (x1) 1482 | -10/Mines | Entered Exiles 1483 | -10/Exiles | Identified exit to Mines 1512 | -10/Exiles | Met 8R-AWN 1529 | -10/Exiles | Met EX-HEX 1570 | -10/Exiles | Met EX-BIN 1690 | -10/Exiles | Met EX-DEC 1768 | -10/Exiles | Visited The Gauntlet 2044 | -10/Exiles | Entered Mines 2140 | -9/Mines | Reached level 3 2226 | -9/Mines | Assembled infested the area 2387 | -9/Mines | Learned Materials security intel 2447 | -9/Mines | Learned location of Storage (-7) 2474 | -9/Mines | Discovered new exit (range 4) 2480 | -9/Mines | Entered Materials 2482 | -8/Materials | Reached level 4 2482 | -8/Materials | Reached level 5 2482 | -8/Materials | Reached level 6 2524 | -8/Materials | Upgraded with Utility slot (x2) 2624 | -8/Materials | Core integrity fell below 50% 2660 | -8/Materials | Core integrity fell below 20% 2852 | -8/Materials | Build established: Skirmisher 2895 | -8/Materials | Upgraded with Utility slot (x1) 3163 | -8/Materials | Reached level 7 3420 | -8/Materials | Discovered new exit (range 3) 3441 | -8/Materials | Identified exit to Factory 3630 | -8/Materials | Reached level 8 3811 | -8/Materials | Upgraded with Utility slot (x1) 3842 | -8/Materials | Entered Factory 3843 | -7/Factory | Core integrity fell below 50% 3844 | -7/Factory | Reached level 9 3844 | -7/Factory | Reached level 10 3878 | -7/Factory | Build established: Scavenger-Skirmisher 3996 | -7/Factory | Discovered new exit (range 14) 4038 | -7/Factory | Identified exit to Lower Caves 4109 | -7/Factory | Discovered new exit (range 11) 4123 | -7/Factory | Identified exit to Storage 4132 | -7/Factory | Self-destructed Last Messages --------------- 03981_ Dropped Lgt. Nuclear Core. 03985_ Acquired Particle Gun. 03994_ Dropped Assault Rifle. 03996_ EXIT=FOUND 04000_ Acquired Arc Projector. 04002_ Chain reaction triggered in Imp. Deuterium Engine. 04015_ Y-54 Guardian destroyed. 04026_ U-05 Engineer builds a Wall. 04026_ U-05 Engineer lays Concrete. 04031_ U-05 Engineer builds a Wall. 04034_ Used Protomatter to restore core integrity (+204, depleted) 04035_ U-05 Engineer lays Concrete. 04038_ EXIT=IDENTIFIED: LOWER CAVES 04038_ U-05 Engineer lays Concrete. 04042_ U-05 Engineer builds a Wall. 04092_ ALERT: Rogue bot located, Programmers report to Factory Zone 9X. 04105_ Dropped Rocket Launcher. 04106_ Acquired Hvy. Rocket Launcher. 04109_ EXIT=FOUND 04123_ EXIT=IDENTIFIED: STORAGE Map ----- +----------------------------------------------------+ | | | | | | | | | | | | | | | | | | | | | | | | | ?????????????????????????????????????????????????? | | ?????????????????????????????????????????????????? | | ?????????????????????????????????????????????????? | | ?????????????????????????????????????????????????? | | ???????????????????????#######???????????????????? | | ???????????????????????? #???????????????????? | | ????????????????????????? #???????????????????? | | ?????????????????????????? #???????????????????? | | ??????????????????????????? +??????####+######### | | ???????????????????????????# #??????# | | ?????????????????????????### ###????# | | ?????????????????????????# #????# | | ?????????????????##+###### ###### | | ????????????# ] ! @ > | | ????????????#] # ########+########## | | ????????????# ! """ """ # #?# ] #??? | | ???????????????? """ """?## ##?# #??? | | ?????????????????""" """??# #??# #??? | | ??????????????????#####???# #??# #### | | ??????????????????????????# #??# """ """ +? | | ??????????????????????????# #??# """ """ #?# | | ??????????????????????????# #??# ! """ """ ### | | ??????????????????????????# #??# # | | ??????????????????????????+ #??# """ """ # | | ??????????????????????????# #??# """ """ + > | | ??????????????????????????# #??# """ """ # | | ?????????????????????????? ??# # | | ?????????????????????????? ??#+##+#####+#### | | ?????????????????????????? ??# #???# #??# | | ?????????????????????????? ??# #???# #??# | | ?????????????????????????????????# ##### #### | | ?????????????????????????????????# | | ???????????????????????????# ##### | | ???????????????????????????# | | ???????????????????????????#######+## | | ?????????????????????????????# [ # """ """ | | ?????????????????????????????# # """ """ | | ?????????????????????????????# # """ """ | +----------------------------------------------------+ Best States ------------- Heat Dissipation 44 Energy Generation 14 Energy Capacity 250 Matter Stores 300 Matter Capacity 300 Sight Range 16 Robot Scan Range 18 Terrain Scan Density 10 Resistance: KI 20 Resistance: TH 20 Resistance: EX 20 Resistance: EM 20 Resistance: I 20 Resistance: S 20 Resistance: P 20 Evasion (%) 43 Targeting Accuracy 8 Recoil Reduction 2 Offensive Hacking 10 Item Schematics ----------------- Imp. VTOL Module | -8/Materials | Extracted Adv. Sensor Array | -8/Materials | Extracted Hvy. EM Shotgun | -8/Materials | Extracted Carbon-fiber Leg | -8/Materials | Extracted Mace | -8/Materials | Extracted Com. Wheel | -8/Materials | Extracted Propulsion Shielding | -8/Materials | Extracted Hvy. EM Pulse Gun | -8/Materials | Extracted Adv. Treads | -8/Materials | Extracted Grenade Launcher | -8/Materials | Extracted Imp. Datajack | -8/Materials | Extracted Nuclear Core | -8/Materials | Extracted Hardlight Generator | -8/Materials | Extracted Robot Schematics ------------------ None Fabricated ------------ Nothing Alien Tech Used ----------------- None Achievements -------------- None Challenges ------------ None RPGLIKE | -11 -10 -10 -10 -9 -8 -7 --------- Run | Scr Mat Min Exi Min Mat Fac Levels Raised 9 | . . 1 . 1 5 2 XP Earned 17814 | 4000 765 1000 200 1488 7578 2783 XP Spent 14060 | 2300 250 2850 . . 8660 . Upgrades 17 | 4 1 6 . . 6 . Propulsion Slot 1 | 1 . . . . . . Utility Slot 8 | 2 . 2 . . 4 . Weapon Slot 1 | 1 . . . . . . Core Integrity 2 | . . . . . 2 . Inventory Capacity 1 | . 1 . . . . . Sensor Range 4 | . . 4 . . . . Protomatter Created 511 | . 34 46 . 10 308 113 Integrity Restored 1359 | . 97 134 . . 789 339 Core 1335 | . 86 121 . . 789 339 Parts 24 | . 11 13 . . . . Protomatter Decayed 55 | . . . . 10 45 . Game ------ Seed AlertStealthMallet Manual? 0 Play Time 01:38:50 Cumulative 190.8 hours Start 2021.01.15 @ 03:11:28 End 2021.01.22 @ 02:42:04 Sessions 5 Manual Loads 0 Difficulty Adventurer Special Mode Winter2019/RPGLIKE Game No. 14 Rogue 7 Adventurer 7 Explorer 0 Win Type - Total 5 Types 3/0/1/1/0/0/0/0/0 Lore% 54 Gallery% 38 Achievement% 48 Wizard Run 0 Options --------- ASCII 0 Keyboard 0 Movement Arrows Keybinds 0 Fullscreen 1 Font 18/SmallcapsGlow Map View 76x50 Tactical HUD 1 Map Filters NONE Filters NONE Steam 1 RUN: 0bc685d6-9de0-4d9f-928a-71bd63eedd59